fUST/lending_fUST_20250206
["ID","MTS","AMOUNT","RATE_DAILY","PERIOD"]
[351873462,1738827046073,-500.0,0.00014246,2]
[351873464,1738827046084,-500.0,0.00014246,2]
[351873466,1738827046094,-500.0,0.00014246,2]
[351873468,1738827046105,-500.0,0.00014246,2]
[351873471,1738827046116,-500.0,0.00014246,2]
[351873473,1738827046126,-500.0,0.00014246,2]
[351873475,1738827046137,-500.0,0.00014246,2]
[351873477,1738827046147,-500.0,0.00014246,2]
[351873479,1738827046157,-759.98,0.00014246,2]
[351873481,1738827046168,-500.0,0.00014246,2]
[351873483,1738827046178,-500.0,0.00014246,2]
[351873485,1738827046188,-500.0,0.00014246,2]
[351873487,1738827046198,-549.46019654,0.00014246,2]
[351873489,1738827046208,-500.0,0.00014246,2]
[351873491,1738827046219,-500.0,0.00014246,2]
[351873494,1738827046230,-569.38,0.00014246,2]
[351873496,1738827046241,-500.0,0.00014246,2]
[351873511,1738827046427,-743.19,0.00014246,2]
[351873514,1738827046518,-500.0,0.00014246,2]
[351873516,1738827046608,-500.0,0.00014246,2]
[351873518,1738827046767,-500.0,0.00014246,2]
[351873521,1738827046900,-1257.54,0.00014246,2]
[351873523,1738827046986,-500.0,0.00014246,2]
[351873524,1738827047062,-962.78,0.00014246,2]
[351873526,1738827047218,-1355.69,0.00014246,2]
[351873528,1738827047315,-3143.94,0.00014246,2]
[351873531,1738827047453,-1695.93,0.00014246,2]
[351873532,1738827047542,-1700.76,0.00014246,2]
[351873534,1738827047587,-815.36,0.00014246,2]
[351873536,1738827047597,-500.0,0.00014246,2]
[351873538,1738827047607,-500.0,0.00014246,2]
[351873540,1738827047617,-500.0,0.00014246,2]
[351873542,1738827047627,-500.0,0.00014246,2]
[351873544,1738827047637,-604.9,0.00014246,2]
[351873546,1738827047647,-500.0,0.00014246,2]
[351873548,1738827047656,-500.0,0.00014246,2]
[351873550,1738827047666,-1235.37,0.00014246,2]
[351873552,1738827047677,-500.0,0.00014246,2]
[351873554,1738827047689,-713.69,0.00014246,2]
[351873556,1738827047698,-500.0,0.00014246,2]
[351873558,1738827047707,-500.0,0.00014246,2]
[351873560,1738827047717,-3813.41,0.00014246,2]
[351873562,1738827047728,-1676.44,0.00014246,2]
[351873564,1738827047738,-500.0,0.00014246,2]
[351873567,1738827047748,-500.0,0.00014246,2]
[351873569,1738827047759,-500.0,0.00014246,2]
[351873571,1738827047769,-500.0,0.00014246,2]
[351873573,1738827047779,-500.0,0.00014246,2]
[351873575,1738827047788,-500.0,0.00014246,2]
[351873576,1738827047798,-500.0,0.00014246,2]
[351873579,1738827047807,-606.12,0.00014246,2]
[351873581,1738827047817,-7570.22298383,0.00014246,2]
[351873624,1738827048394,801.15,0.00013,2]
[351873627,1738827048424,42.95290112,0.00013,2]
[351876437,1738827136200,642.99968008,0.00011,2]
[351876438,1738827136221,1702.04838683,0.00011,2]
[351876439,1738827136244,705.40384604,0.00011,2]
[351876440,1738827136265,818.04743832,0.00011,2]
[351876441,1738827136287,796.8184,0.00011,2]
[351876530,1738828025119,-768.34541382,0.00010848,2]
[351876536,1738828145214,-557.95357979,0.00010848,2]
[351876537,1738828145240,-300.0,0.00010958,2]
[351876538,1738828145263,-2489.59,0.00010959,2]
[351876539,1738828145285,-2074.66,0.00010959,2]
[351876540,1738828145309,-1728.88,0.00010959,2]
[351876541,1738828145333,-1440.74,0.00010959,2]
[351876542,1738828145356,-1200.61,0.00010959,2]
[351876543,1738828145379,-1000.51,0.00010959,2]
[351876544,1738828145402,-833.76,0.00010959,2]
[351876545,1738828145427,-833.76,0.00010959,2]
[351876546,1738828145450,-555.84,0.00010959,2]
[351876547,1738828145474,-530.3,0.00010959,2]
[351876548,1738828145497,-441.92,0.00010959,2]
[351876549,1738828145520,-368.27,0.00010959,2]
[351876550,1738828145544,-306.89,0.00010959,2]
[351876551,1738828145569,-255.74,0.00010959,2]
[351876552,1738828145592,-479.25,0.00010959,2]
[351876553,1738828145843,-399.38,0.00010959,2]
[351876554,1738828145867,-332.81,0.00010959,2]
[351876555,1738828145890,-277.34,0.00010959,2]
[351876556,1738828145913,-231.12,0.00010959,2]
[351876557,1738828145937,-420.0,0.00012042,2]
[351876558,1738828145961,-1200.0,0.00012054,2]
[351876559,1738828145984,-6568.68224873,0.00013,2]
[351876560,1738828146008,-587.0,0.00013233,2]
[351876561,1738828146035,-894.60337148,0.00013424,2]
[351876562,1738828148705,10000.0,0.000192,120]
[351876563,1738828150156,-192.6,0.00010959,2]
[351876564,1738828156958,160.5,0.00010959,2]
[351876565,1738828157140,-305.39662852,0.00013424,2]
[351876566,1738828167575,459.17977148,0.00010959,2]
[351876567,1738828167600,343.35022852,0.00010959,2]
[351876568,1738828188733,1200.0,0.00012054,2]
[351876569,1738828190323,163.70197148,0.00013424,2]
[351876570,1738828212059,551.5150925,0.00012698,2]
[351876571,1738828219146,385.23,0.00010959,2]
[351876591,1738828232629,-7876.6631541,0.00012698,2]
[351876593,1738828232640,-1036.29802852,0.00013424,2]
[351876595,1738828232649,-218.19091382,0.00013598,2]
[351876597,1738828232659,-482.99467226,0.00013598,2]
[351876599,1738828232669,-7438.69753278,0.00013661,2]
[351876601,1738828232678,-300.0,0.00013697,2]
[351876603,1738828232688,-500.0,0.00013698,2]
[351876605,1738828232697,-500.0,0.00013698,2]
[351876607,1738828232706,-500.0,0.00013698,2]
[351876609,1738828232716,-278.34929661,0.00013698,2]
[351876611,1738828232725,-500.0,0.00013698,2]
[351876613,1738828232734,-500.0,0.00013698,2]
[351876615,1738828232744,-500.0,0.00013698,2]
[351876617,1738828232754,-500.0,0.00013698,2]
[351876619,1738828232764,-500.0,0.00013698,2]
[351876621,1738828232776,-500.0,0.00013698,2]
[351876623,1738828232785,-500.0,0.00013698,2]
[351876625,1738828232795,-315.70970659,0.00013698,2]
[351876627,1738828232804,-500.0,0.00013698,2]
[351876629,1738828232814,-500.0,0.00013698,2]
[351876631,1738828232823,-500.0,0.00013698,2]
[351876633,1738828232833,-500.0,0.00013698,2]
[351876635,1738828232843,-500.0,0.00013698,2]
[351876637,1738828232852,-301.34419279,0.00013698,2]
[351876639,1738828232861,-500.0,0.00013698,2]
[351876641,1738828232871,-500.0,0.00013698,2]
[351876643,1738828232880,-500.0,0.00013698,2]
[351876646,1738828232902,-500.0,0.00013698,2]
[351876648,1738828232913,-500.0,0.00013698,2]
[351876650,1738828232923,-500.0,0.00013698,2]
[351876652,1738828232933,-500.0,0.00013698,2]
[351876654,1738828232943,-500.0,0.00013698,2]
[351876658,1738828232954,-500.0,0.00013698,2]
[351876661,1738828232964,-500.0,0.00013698,2]
[351876664,1738828232974,-500.0,0.00013698,2]
[351876667,1738828232984,-500.0,0.00013698,2]
[351876670,1738828232994,-500.0,0.00013698,2]
[351876674,1738828233005,-500.0,0.00013698,2]
[351876677,1738828233015,-643.66,0.00013698,2]
[351876678,1738828233025,-500.0,0.00013698,2]
[351876681,1738828233036,-500.0,0.00013698,2]
[351876683,1738828233051,-500.0,0.00013698,2]
[351876684,1738828233061,-500.0,0.00013698,2]
[351876687,1738828233071,-500.0,0.00013698,2]
[351876689,1738828233084,-500.0,0.00013698,2]
[351876691,1738828233094,-500.0,0.00013698,2]
[351876693,1738828233104,-572.83,0.00013698,2]
[351876695,1738828233115,-500.0,0.00013698,2]
[351876697,1738828233125,-500.0,0.00013698,2]
[351876699,1738828233138,-500.0,0.00013698,2]
[351876701,1738828233148,-600.65,0.00013698,2]
[351876703,1738828233159,-500.0,0.00013698,2]
[351876705,1738828233169,-500.0,0.00013698,2]
[351876707,1738828233178,-500.0,0.00013698,2]
[351876709,1738828233189,-500.0,0.00013698,2]
[351876711,1738828233199,-500.0,0.00013698,2]
[351876713,1738828233209,-500.0,0.00013698,2]
[351876715,1738828233219,-500.0,0.00013698,2]
[351876717,1738828233229,-500.0,0.00013698,2]
[351876719,1738828233239,-500.0,0.00013698,2]
[351876721,1738828233249,-564.76,0.00013698,2]
[351876723,1738828233259,-500.0,0.00013698,2]
[351876726,1738828233269,-500.0,0.00013698,2]
[351876728,1738828233279,-500.0,0.00013698,2]
[351876730,1738828233289,-1119.47,0.00013698,2]
[351876732,1738828233300,-500.0,0.00013698,2]
[351876734,1738828233310,-500.0,0.00013698,2]
[351876736,1738828233320,-1283.2,0.00013698,2]
[351876738,1738828233330,-500.0,0.00013698,2]
[351876740,1738828233340,-500.0,0.00013698,2]
[351876742,1738828233350,-500.0,0.00013698,2]
[351876744,1738828233362,-500.0,0.00013698,2]
[351876746,1738828233372,-1296.73,0.00013698,2]
[351876748,1738828233382,-500.0,0.00013698,2]
[351876750,1738828233395,-500.0,0.00013698,2]
[351876752,1738828233406,-500.0,0.00013698,2]
[351876754,1738828233418,-500.0,0.00013698,2]
[351876756,1738828233428,-500.0,0.00013698,2]
[351876759,1738828233438,-500.0,0.00013698,2]
[351876761,1738828233449,-500.0,0.00013698,2]
[351876763,1738828233459,-500.0,0.00013698,2]
[351876765,1738828233469,-500.0,0.00013698,2]
[351876767,1738828233479,-907.06,0.00013698,2]
[351876769,1738828233489,-500.0,0.00013698,2]
[351876771,1738828233500,-500.0,0.00013698,2]
[351876773,1738828233510,-500.0,0.00013698,2]
[351876775,1738828233520,-687.39,0.00013698,2]
[351876777,1738828233530,-500.0,0.00013698,2]
[351876779,1738828233540,-1613.82,0.00013698,2]
[351876781,1738828233550,-307.43406819,0.00013698,2]
[351876783,1738828233560,-500.0,0.00013698,2]
[351876785,1738828233570,-500.0,0.00013698,2]
[351876787,1738828233580,-500.0,0.00013698,2]
[351876789,1738828233590,-515.57,0.00013698,2]
[351876791,1738828233600,-500.0,0.00013698,2]
[351876793,1738828233610,-500.0,0.00013698,2]
[351876795,1738828233620,-500.0,0.00013698,2]
[351876797,1738828233629,-1316.04,0.00013698,2]
[351876799,1738828233641,-500.0,0.00013698,2]
[351876802,1738828233651,-500.0,0.00013698,2]
[351876804,1738828233662,-572.77,0.00013698,2]
[351876806,1738828233672,-979.04,0.00013698,2]
[351876808,1738828233683,-500.0,0.00013698,2]
[351876810,1738828233694,-500.0,0.00013698,2]
[351876812,1738828233705,-500.0,0.00013698,2]
[351876814,1738828233717,-500.0,0.00013698,2]
[351876816,1738828233729,-500.0,0.00013698,2]
[351876818,1738828233739,-500.0,0.00013698,2]
[351876820,1738828233750,-500.0,0.00013698,2]
[351876822,1738828233759,-500.0,0.00013698,2]
[351876824,1738828233769,-500.0,0.00013698,2]
[351876826,1738828233782,-500.0,0.00013698,2]
[351876828,1738828233793,-511.46809914,0.00013698,2]
[351876830,1738828233804,-500.0,0.00013698,2]
[351876832,1738828233815,-500.0,0.00013698,2]
[351876834,1738828233825,-500.0,0.00013698,2]
[351876836,1738828233836,-405.40684095,0.00013698,2]
[351876838,1738828233846,-500.0,0.00013698,2]
[351876840,1738828233855,-241.82655055,0.00013698,2]
[351876843,1738828233893,-265.03344945,0.00013698,2]
[351876845,1738828233902,-34.96655055,0.00013698,2]
[351876846,1738828233915,-465.03344945,0.00013698,2]
[351876847,1738828233925,-1100.44,0.00013698,2]
[351876848,1738828233935,-500.0,0.00013698,2]
[351876849,1738828233945,-506.94515771,0.00013698,2]
[351876850,1738828233956,-500.0,0.00013698,2]
[351876851,1738828233966,-500.0,0.00013698,2]
[351876852,1738828233976,-500.0,0.00013698,2]
[351876853,1738828233986,-500.0,0.00013698,2]
[351876854,1738828233995,-500.0,0.00013698,2]
[351876855,1738828234005,-500.0,0.00013698,2]
[351876856,1738828234015,-500.0,0.00013698,2]
[351876857,1738828234024,-500.0,0.00013698,2]
[351876858,1738828234034,-500.0,0.00013698,2]
[351876859,1738828234048,-500.0,0.00013698,2]
[351876860,1738828234058,-500.0,0.00013698,2]
[351876861,1738828234068,-500.0,0.00013698,2]
[351876862,1738828234078,-1632.91,0.00013698,2]
[351876863,1738828234089,-3386.05,0.00013698,2]
[351876864,1738828234098,-738.06,0.00013698,2]
[351876865,1738828234108,-500.0,0.00013698,2]
[351876866,1738828234118,-500.0,0.00013698,2]
[351876867,1738828234128,-500.0,0.00013698,2]
[351876868,1738828234140,-500.0,0.00013698,2]
[351876869,1738828234153,-500.0,0.00013698,2]
[351876870,1738828234165,-508.83177126,0.00013698,2]
[351876871,1738828234175,-500.0,0.00013698,2]
[351876872,1738828234184,-500.0,0.00013698,2]
[351876873,1738828234194,-500.0,0.00013698,2]
[351876874,1738828234203,-500.0,0.00013698,2]
[351876875,1738828234213,-500.0,0.00013698,2]
[351876876,1738828234223,-500.0,0.00013698,2]
[351876877,1738828234232,-500.0,0.00013698,2]
[351876878,1738828234242,-500.0,0.00013698,2]
[351876879,1738828234252,-500.0,0.00013698,2]
[351876880,1738828234261,-605.60997334,0.00013698,2]
[351876881,1738828234271,-1181.59,0.00013698,2]
[351876882,1738828234280,-500.0,0.00013698,2]
[351876883,1738828234290,-500.0,0.00013698,2]
[351876884,1738828234299,-500.0,0.00013698,2]
[351876885,1738828234309,-500.0,0.00013698,2]
[351876886,1738828234318,-500.0,0.00013698,2]
[351876887,1738828234327,-1057.51,0.00013698,2]
[351876888,1738828234337,-4576.6,0.00013698,2]
[351876889,1738828234347,-500.0,0.00013698,2]
[351876890,1738828234356,-500.0,0.00013698,2]
[351876891,1738828234365,-1474.61,0.00013698,2]
[351876892,1738828234375,-629.77,0.00013698,2]
[351876893,1738828234385,-500.0,0.00013698,2]
[351876894,1738828234395,-3911.21,0.00013698,2]
[351876895,1738828234405,-500.0,0.00013698,2]
[351876896,1738828234415,-500.0,0.00013698,2]
[351876897,1738828234425,-1724.91947924,0.00013698,2]
[351876898,1738828234450,-5288.27824663,0.00013698,2]
[351876899,1738828234462,-568.8073172,0.00013698,2]
[351876903,1738828238473,-32758.26495693,0.00013698,2]
[351876905,1738828238483,-17302.07,0.00013698,2]
[351876906,1738828238493,-500.0,0.00013698,2]
[351876907,1738828238503,-500.0,0.00013698,2]
[351876909,1738828238512,-500.0,0.00013698,2]
[351876910,1738828238522,-663.03,0.00013698,2]
[351876916,1738828238742,-500.0,0.00013698,2]
[351876917,1738828238751,-1964.46,0.00013698,2]
[351876918,1738828238761,-500.0,0.00013698,2]
[351876919,1738828238771,-2060.26,0.00013698,2]
[351876920,1738828238780,-500.0,0.00013698,2]
[351876921,1738828238789,-1898.44,0.00013698,2]
[351876922,1738828238799,-500.0,0.00013698,2]
[351876923,1738828238809,-1811.28,0.00013698,2]
[351876924,1738828238818,-993.62,0.00013698,2]
[351876925,1738828238827,-500.0,0.00013698,2]
[351876926,1738828238838,-1182.6,0.00013698,2]
[351876927,1738828238847,-500.0,0.00013698,2]
[351876928,1738828238857,-537.96,0.00013698,2]
[351876929,1738828238867,-500.0,0.00013698,2]
[351876930,1738828238876,-500.0,0.00013698,2]
[351876931,1738828238886,-500.0,0.00013698,2]
[351876932,1738828238899,-500.0,0.00013698,2]
[351876933,1738828238908,-500.0,0.00013698,2]
[351876934,1738828238917,-500.0,0.00013698,2]
[351876935,1738828238927,-500.0,0.00013698,2]
[351876936,1738828238936,-500.0,0.00013698,2]
[351876937,1738828238945,-500.0,0.00013698,2]
[351876938,1738828238955,-1461.85,0.00013698,2]
[351876939,1738828238964,-589.66968144,0.00013698,2]
[351876940,1738828238974,-840.52,0.00013698,2]
[351876941,1738828238983,-500.0,0.00013698,2]
[351876942,1738828238993,-500.0,0.00013698,2]
[351876943,1738828239003,-500.0,0.00013698,2]
[351876944,1738828239012,-500.0,0.00013698,2]
[351876945,1738828239022,-624.06,0.00013698,2]
[351876946,1738828239032,-2053.64,0.00013698,2]
[351876947,1738828239042,-500.0,0.00013698,2]
[351876948,1738828239054,-500.0,0.00013698,2]
[351876949,1738828239063,-500.0,0.00013698,2]
[351876950,1738828239081,-500.0,0.00013698,2]
[351876951,1738828239094,-820.82,0.00013698,2]
[351876952,1738828239104,-500.0,0.00013698,2]
[351876953,1738828239114,-500.0,0.00013698,2]
[351876954,1738828239125,-9171.56,0.00013698,2]
[351876955,1738828239135,-500.0,0.00013698,2]
[351876956,1738828239147,-564.26,0.00013698,2]
[351876957,1738828239157,-2459.67,0.00013698,2]
[351876958,1738828239167,-500.0,0.00013698,2]
[351876959,1738828239177,-500.0,0.00013698,2]
[351876960,1738828239186,-500.0,0.00013698,2]
[351876961,1738828239197,-500.0,0.00013698,2]
[351876962,1738828239206,-500.0,0.00013698,2]
[351876963,1738828239216,-1420.31,0.00013698,2]
[351876964,1738828239226,-500.0,0.00013698,2]
[351876965,1738828239236,-500.0,0.00013698,2]
[351876966,1738828239246,-2894.67,0.00013698,2]
[351876967,1738828239257,-2875.66,0.00013698,2]
[351876968,1738828239267,-500.0,0.00013698,2]
[351876969,1738828239277,-500.0,0.00013698,2]
[351876970,1738828239287,-3750.01,0.00013698,2]
[351876971,1738828239297,-1314.52,0.00013698,2]
[351876972,1738828239308,-500.0,0.00013698,2]
[351876973,1738828239318,-500.0,0.00013698,2]
[351876974,1738828239328,-638.86,0.00013698,2]
[351876975,1738828239337,-500.0,0.00013698,2]
[351876976,1738828239347,-683.53,0.00013698,2]
[351876977,1738828239356,-1346.33,0.00013698,2]
[351876978,1738828239366,-566.68,0.00013698,2]
[351876979,1738828239376,-497.3,0.00013698,2]
[351876980,1738828239386,-500.0,0.00013698,2]
[351876981,1738828239397,-1596.8,0.00013698,2]
[351876982,1738828239407,-1479.92,0.00013698,2]
[351876983,1738828239417,-500.0,0.00013698,2]
[351876984,1738828239426,-500.0,0.00013698,2]
[351876985,1738828239436,-523.0,0.00013698,2]
[351876986,1738828239446,-861.72,0.00013698,2]
[351876987,1738828239455,-500.0,0.00013698,2]
[351876988,1738828239465,-505.08,0.00013698,2]
[351876989,1738828239475,-693.47,0.00013698,2]
[351876990,1738828239484,-299.46367127,0.00013698,2]
[351876991,1738828239494,-500.0,0.00013698,2]
[351876992,1738828239505,-1324.95,0.00013698,2]
[351876993,1738828239515,-500.0,0.00013698,2]
[351876994,1738828239525,-500.0,0.00013698,2]
[351876995,1738828239535,-3342.74,0.00013698,2]
[351876996,1738828239545,-500.0,0.00013698,2]
[351876997,1738828239555,-500.0,0.00013698,2]
[351876998,1738828239565,-1346.95,0.00013698,2]
[351876999,1738828239575,-500.42009382,0.00013698,2]
[351877000,1738828239585,-6659.87,0.00013698,2]
[351877001,1738828239595,-536.53,0.00013698,2]
[351877002,1738828239605,-500.0,0.00013698,2]
[351877003,1738828239615,-14180.11,0.00013698,2]
[351877004,1738828239625,-500.0,0.00013698,2]
[351877005,1738828239635,-500.0,0.00013698,2]
[351877006,1738828239645,-212.277231,0.00013699,2]
[351877007,1738828239656,-253.914794,0.00013699,2]
[351877008,1738828239666,-500.0,0.00013699,2]
[351877009,1738828239677,-255.07962211,0.00013699,2]
[351877010,1738828239687,-500.0,0.00013835,2]
[351877011,1738828239697,-500.0,0.00013835,2]
[351877012,1738828239707,-500.0,0.00013835,2]
[351877013,1738828239717,-194.99787331,0.00013835,2]
[351877014,1738828239726,-500.0,0.00013835,2]
[351877015,1738828239736,-500.0,0.00013835,2]
[351877016,1738828239747,-500.0,0.00013835,2]
[351877017,1738828239757,-500.0,0.00013835,2]
[351877018,1738828239767,-500.0,0.00013835,2]
[351877019,1738828239777,-500.0,0.00013835,2]
[351877020,1738828239788,-500.0,0.00013835,2]
[351877021,1738828239798,-500.0,0.00013835,2]
[351877022,1738828239809,-500.0,0.00013835,2]
[351877023,1738828239819,-500.0,0.00013835,2]
[351877024,1738828239829,-500.0,0.00013835,2]
[351877025,1738828239838,-500.0,0.00013835,2]
[351877026,1738828239848,-500.0,0.00013835,2]
[351877027,1738828239858,-500.0,0.00013835,2]
[351877028,1738828239867,-500.0,0.00013835,2]
[351877029,1738828239877,-500.0,0.00013835,2]
[351877030,1738828239886,-500.0,0.00013835,2]
[351877031,1738828239897,-500.0,0.00013835,2]
[351877032,1738828239907,-500.0,0.00013835,2]
[351877033,1738828239917,-643.66,0.00013835,2]
[351877034,1738828239929,-500.0,0.00013835,2]
[351877035,1738828239939,-500.0,0.00013835,2]
[351877036,1738828239949,-500.0,0.00013835,2]
[351877037,1738828239959,-500.0,0.00013835,2]
[351877038,1738828239968,-500.0,0.00013835,2]
[351877039,1738828239978,-500.0,0.00013835,2]
[351877040,1738828239988,-572.83,0.00013835,2]
[351877041,1738828239998,-500.0,0.00013835,2]
[351877042,1738828240008,-500.0,0.00013835,2]
[351877043,1738828240018,-500.0,0.00013835,2]
[351877045,1738828240028,-600.65,0.00013835,2]
[351877046,1738828240037,-500.0,0.00013835,2]
[351877047,1738828240049,-500.0,0.00013835,2]
[351877048,1738828240059,-500.0,0.00013835,2]
[351877049,1738828240068,-500.0,0.00013835,2]
[351877050,1738828240078,-500.0,0.00013835,2]
[351877051,1738828240088,-500.0,0.00013835,2]
[351877052,1738828240098,-500.0,0.00013835,2]
[351877053,1738828240108,-500.0,0.00013835,2]
[351877054,1738828240117,-500.0,0.00013835,2]
[351877055,1738828240129,-564.76,0.00013835,2]
[351877056,1738828240139,-500.0,0.00013835,2]
[351877057,1738828240150,-500.0,0.00013835,2]
[351877058,1738828240159,-500.0,0.00013835,2]
[351877059,1738828240169,-808.99174697,0.00013835,2]
[351877063,1738828240359,-310.47825303,0.00013835,2]
[351877065,1738828240369,-500.0,0.00013835,2]
[351877066,1738828240378,-1283.2,0.00013835,2]
[351877067,1738828240388,-646.74235992,0.00013835,2]
[351877068,1738828240398,-500.0,0.00013835,2]
[351877070,1738828240408,-500.0,0.00013835,2]
[351877071,1738828240417,-1296.73,0.00013835,2]
[351877072,1738828240426,-500.0,0.00013835,2]
[351877073,1738828240436,-500.0,0.00013835,2]
[351877074,1738828240445,-500.0,0.00013835,2]
[351877075,1738828240455,-500.0,0.00013835,2]
[351877076,1738828240464,-500.0,0.00013835,2]
[351877077,1738828240473,-500.0,0.00013835,2]
[351877078,1738828240483,-500.0,0.00013835,2]
[351877079,1738828240492,-500.0,0.00013835,2]
[351877080,1738828240502,-500.0,0.00013835,2]
[351877081,1738828240511,-907.06,0.00013835,2]
[351877082,1738828240520,-500.0,0.00013835,2]
[351877083,1738828240530,-500.0,0.00013835,2]
[351877084,1738828240539,-500.0,0.00013835,2]
[351877085,1738828240549,-687.39,0.00013835,2]
[351877086,1738828240559,-500.0,0.00013835,2]
[351877087,1738828240569,-1613.82,0.00013835,2]
[351877088,1738828240579,-500.0,0.00013835,2]
[351877089,1738828240589,-189.52594847,0.00013835,2]
[351877090,1738828240599,-515.57,0.00013835,2]
[351877091,1738828240608,-500.0,0.00013835,2]
[351877092,1738828240618,-500.0,0.00013835,2]
[351877093,1738828240627,-500.0,0.00013835,2]
[351877095,1738828240637,-1316.04,0.00013835,2]
[351877096,1738828240646,-500.0,0.00013835,2]
[351877097,1738828240656,-500.0,0.00013835,2]
[351877098,1738828240666,-572.77,0.00013835,2]
[351877099,1738828240675,-979.04,0.00013835,2]
[351877100,1738828240684,-500.0,0.00013835,2]
[351877101,1738828240694,-500.0,0.00013835,2]
[351877102,1738828240703,-500.0,0.00013835,2]
[351877103,1738828240712,-500.0,0.00013835,2]
[351877104,1738828240722,-500.0,0.00013835,2]
[351877105,1738828240731,-500.0,0.00013835,2]
[351877106,1738828240740,-500.0,0.00013835,2]
[351877107,1738828240750,-500.0,0.00013835,2]
[351877108,1738828240759,-500.0,0.00013835,2]
[351877109,1738828240768,-500.0,0.00013835,2]
[351877110,1738828240778,-506.86,0.00013835,2]
[351877111,1738828240788,-264.76757548,0.00013835,2]
[351877112,1738828240797,-1100.44,0.00013835,2]
[351877113,1738828240807,-500.0,0.00013835,2]
[351877114,1738828240817,-500.0,0.00013835,2]
[351877115,1738828240826,-500.0,0.00013835,2]
[351877116,1738828240835,-500.0,0.00013835,2]
[351877117,1738828240845,-500.0,0.00013835,2]
[351877118,1738828240854,-500.0,0.00013835,2]
[351877119,1738828240864,-500.0,0.00013835,2]
[351877120,1738828240873,-1293.94599427,0.00013835,2]
[351877121,1738828240890,-2092.10400573,0.00013835,2]
[351877122,1738828240900,-738.06,0.00013835,2]
[351877123,1738828240909,-500.0,0.00013835,2]
[351877124,1738828240919,-500.0,0.00013835,2]
[351877125,1738828240928,-500.0,0.00013835,2]
[351877126,1738828240938,-500.0,0.00013835,2]
[351877127,1738828240947,-500.0,0.00013835,2]
[351877128,1738828240957,-500.0,0.00013835,2]
[351877129,1738828240967,-500.0,0.00013835,2]
[351877130,1738828240976,-500.0,0.00013835,2]
[351877131,1738828240986,-1181.59,0.00013835,2]
[351877132,1738828240995,-500.0,0.00013835,2]
[351877133,1738828241005,-500.0,0.00013835,2]
[351877134,1738828241015,-500.0,0.00013835,2]
[351877135,1738828241024,-500.0,0.00013835,2]
[351877136,1738828241034,-1057.51,0.00013835,2]
[351877137,1738828241049,-4576.6,0.00013835,2]
[351877138,1738828241059,-500.0,0.00013835,2]
[351877139,1738828241070,-1474.61,0.00013835,2]
[351877140,1738828241079,-500.0,0.00013835,2]
[351877141,1738828241090,-3911.21,0.00013835,2]
[351877142,1738828241099,-500.0,0.00013835,2]
[351877143,1738828241109,-500.0,0.00013835,2]
[351877144,1738828241120,-40340.27,0.00013835,2]
[351877145,1738828241131,-17302.07,0.00013835,2]